bitfinex/quotes_BTCUSD_20240828
["timestamp","ask_amount","ask_price","bid_price","bid_amount"]
[1724870679678,0.02656681,59041.0,59040.0,0.79316608]
[1724870680395,0.02656681,59041.0,59040.0,0.96254208]
[1724870680846,0.02656681,59041.0,59040.0,0.79316608]
[1724870681086,0.87343381,59041.0,59040.0,0.72826608]
[1724870681334,0.53468681,59041.0,59040.0,0.72826608]
[1724870681561,0.87343381,59041.0,59040.0,0.64886608]
[1724870681801,0.87343381,59041.0,59040.0,0.63659382]
[1724870682035,0.87343381,59041.0,59040.0,0.64880669]
[1724870684863,0.87343381,59041.0,59040.0,0.02121087]
[1724870685360,0.53468681,59041.0,59040.0,0.02121087]
[1724870686483,0.87343381,59041.0,59040.0,0.02121087]
[1724870686687,0.87343381,59041.0,59040.0,0.02505839]
[1724870687144,0.87343381,59041.0,59040.0,0.008998]
[1724870689828,1.26292672,59041.0,59040.0,0.008998]
[1724870690530,0.95504764,59041.0,59040.0,0.008998]
[1724870690760,1.12442064,59041.0,59040.0,0.008998]
[1724870691907,0.78567364,59041.0,59040.0,0.008998]
[1724870692135,0.78567364,59041.0,59040.0,0.089898]
[1724870694404,0.78567364,59041.0,59040.0,0.008998]
[1724870694405,1.20202064,59041.0,59040.0,0.008998]
[1724870695711,1.263214,59041.0,59040.0,0.008998]
[1724870697470,1.3140237,59041.0,59040.0,0.008998]
[1724870697679,1.34058939,59041.0,59040.0,0.008998]
[1724870699268,1.34725424,59041.0,59040.0,0.008998]
[1724870699952,1.26298939,59041.0,59040.0,0.008998]
[1724870700171,1.26298939,59041.0,59040.0,0.02502441]
[1724870700453,1.26298939,59041.0,59040.0,0.008998]
[1724870700687,1.26298939,59041.0,59040.0,0.02502441]
[1724870700890,1.26298939,59041.0,59040.0,0.008998]
[1724870701129,1.21217969,59041.0,59040.0,0.008998]
[1724870702769,0.87343269,59041.0,59040.0,0.008998]
[1724870703019,0.02656569,59041.0,59040.0,0.084198]
[1724870703234,0.02656569,59041.0,59040.0,0.99728]
[1724870703486,0.02656569,59041.0,59040.0,1.96362882]
[1724870703694,0.02656569,59041.0,59040.0,1.9796978]
[1724870703952,0.02656569,59041.0,59040.0,0.7940628]
[1724870704166,0.53468569,59041.0,59040.0,0.7940628]
[1724870704300,0.87343269,59041.0,59040.0,0.6526628]
[1724870704503,1.21217969,59041.0,59040.0,0.63659382]
[1724870704651,0.87343269,59041.0,59040.0,0.6526628]
[1724870704871,0.87343269,59041.0,59040.0,0.02506698]
[1724870705090,1.23517969,59041.0,59040.0,0.02506698]
[1724870705332,1.51809909,59041.0,59040.0,0.008998]
[1724870705556,1.41647969,59041.0,59040.0,0.008998]
[1724870707238,1.33517969,59041.0,59040.0,0.008998]
[1724870708815,0.99643269,59041.0,59040.0,0.008998]
[1724870709065,0.63468569,59041.0,59040.0,0.008998]
[1724870709525,0.97343269,59041.0,59040.0,0.008998]
[1724870710890,1.4391853,59041.0,59040.0,0.008998]
[1724870711087,1.31217969,59041.0,59040.0,0.008998]
[1724870711305,1.43999986,59041.0,59040.0,0.008998]
[1724870711513,1.31299769,59041.0,59040.0,0.008998]
[1724870711940,1.41459531,59041.0,59040.0,0.008998]
[1724870712152,1.31299769,59041.0,59040.0,0.008998]
[1724870712582,1.38809769,59041.0,59040.0,0.008998]
[1724870712795,1.41109769,59041.0,59040.0,0.008998]
[1724870713223,1.538089,59041.0,59040.0,0.008998]
[1724870713439,1.41109769,59041.0,59040.0,0.008998]
[1724870713667,1.43758305,59041.0,59040.0,0.008998]
[1724870713899,1.33599769,59041.0,59040.0,0.008998]
[1724870714114,1.43758265,59041.0,59040.0,0.008998]
[1724870714326,1.33599769,59041.0,59040.0,0.008998]
[1724870714533,1.462989,59041.0,59040.0,0.008998]
[1724870714972,1.57170743,59041.0,59040.0,0.008998]
[1724870715200,1.81014469,59041.0,59040.0,0.008998]
[1724870715409,1.91345443,59041.0,59040.0,0.008998]
[1724870715666,1.92545443,59041.0,59040.0,0.008998]
[1724870715884,1.92545443,59041.0,59024.0,0.00012]
[1724870715885,0.846997,59032.0,59024.0,0.00012]
[1724870716094,1.65925236,59032.0,59024.0,0.00012]
[1724870716323,1.99805136,59032.0,59024.0,0.00012]
[1724870716536,1.70882296,59032.0,59025.0,0.0822]
[1724870716754,1.3353666,59032.0,59025.0,0.0822]
[1724870716997,1.07511732,59032.0,59025.0,0.0822]
[1724870717207,1.07511732,59032.0,59024.0,0.00012]
[1724870717208,0.0265706,59032.0,59024.0,0.00012]
[1724870717451,0.5347686,59032.0,59031.0,0.088198]
[1724870717666,0.98954091,59032.0,59031.0,0.009398]
[1724870717903,0.98954091,59032.0,59031.0,0.02374815]
[1724870717904,0.92433546,59032.0,59031.0,0.02374815]
[1724870718131,0.8735676,59032.0,59031.0,0.009398]
[1724870718376,0.92433016,59032.0,59031.0,0.009398]
[1724870718604,0.94972856,59032.0,59031.0,0.009398]
[1724870718801,0.8735676,59032.0,59031.0,0.009398]
[1724870719017,0.9243325,59032.0,59031.0,0.009398]
[1724870719514,0.5855335,59032.0,59031.0,0.088198]
[1724870719736,0.5347686,59032.0,59031.0,0.088198]
[1724870720149,0.92433378,59032.0,59031.0,0.088198]
[1724870720375,0.58553478,59032.0,59031.0,0.088198]
[1724870720800,0.8735676,59032.0,59031.0,0.088198]
[1724870721003,0.5347686,59032.0,59031.0,0.088198]
[1724870721672,0.6109352,59032.0,59031.0,0.009398]
[1724870721880,1.02235521,59032.0,59031.0,0.009398]
[1724870722326,1.15886185,59032.0,59031.0,0.009398]
[1724870722558,1.51582296,59032.0,59031.0,0.009398]
[1724870722965,1.11162396,59032.0,59031.0,0.009398]
[1724870723606,0.8735676,59032.0,59031.0,0.009398]
[1724870723817,0.10275022,59032.0,59031.0,0.157498]
[1724870724057,0.1959696,59032.0,59031.0,0.157498]
[1724870724274,0.0265706,59032.0,59031.0,0.34126495]
[1724870724703,0.0265706,59032.0,59031.0,0.17186295]
[1724870725360,0.0265706,59032.0,59031.0,1.01887495]
[1724870725591,0.0265706,59032.0,59031.0,1.98527577]
[1724870730413,0.0265706,59032.0,59031.0,0.96886077]
[1724870730640,0.0265706,59032.0,59031.0,1.30766577]
[1724870730845,0.0265706,59032.0,59031.0,1.64647077]
[1724870732153,0.0265706,59032.0,59031.0,1.98527577]
[1724870732369,0.02636674,59032.0,59031.0,1.98527577]
[1724870734315,0.02636674,59032.0,59031.0,2.32408077]
[1724870734553,0.000818,59041.0,59031.0,2.32408077]
[1724870734554,0.000818,59041.0,59040.0,0.994282]
[1724870734800,0.000818,59041.0,59040.0,1.00813725]
[1724870735455,0.000818,59041.0,59040.0,1.63573307]
[1724870735656,0.000818,59041.0,59040.0,1.63663287]
[1724870736742,0.000818,59041.0,59040.0,1.97538587]
[1724870736962,0.000818,59041.0,59040.0,1.63663287]
[1724870737180,0.000818,59041.0,59040.0,1.97538587]
[1724870738506,0.000818,59041.0,59040.0,1.97738587]
[1724870739400,0.000818,59041.0,59040.0,1.97538587]
[1724870739611,0.000818,59041.0,59040.0,1.97738587]
[1724870740037,0.000818,59041.0,59040.0,1.97538587]
[1724870742630,0.000818,59041.0,59040.0,1.63663287]
[1724870742852,0.02737734,59041.0,59040.0,1.63663287]
[1724870745588,0.02737734,59041.0,59040.0,1.29787987]
[1724870745792,0.61519734,59041.0,59040.0,0.64235087]
[1724870746075,1.29269134,59041.0,59040.0,0.64235087]
[1724870746286,1.5307477,59041.0,59040.0,0.01475505]
[1724870746521,1.5307477,59041.0,59040.0,0.0008998]
[1724870746768,0.87424434,59041.0,59040.0,0.0008998]
[1724870749590,0.19675034,59041.0,59040.0,0.0008998]
[1724870749860,0.53549734,59041.0,59040.0,0.01470889]
[1724870750019,0.87424434,59041.0,59040.0,0.01470889]
[1724870750238,0.87424434,59041.0,59040.0,0.0008998]
[1724870750968,0.95394434,59041.0,59040.0,0.0008998]
[1724870751190,1.35319134,59041.0,59040.0,0.0008998]
[1724870751437,1.5912477,59041.0,59040.0,0.0008998]
[1724870751661,1.35319134,59041.0,59040.0,0.0008998]
[1724870751881,1.5912477,59041.0,59040.0,0.0008998]
[1724870752128,1.6142477,59041.0,59040.0,0.0008998]
[1724870752864,1.66494567,59041.0,59040.0,0.0008998]
[1724870753072,1.66494484,59041.0,59040.0,0.0008998]
[1724870753315,1.6142477,59041.0,59040.0,0.0008998]
[1724870754013,1.37619134,59041.0,59040.0,0.0008998]
[1724870758762,1.23599134,59041.0,59040.0,0.0008998]
[1724870758999,1.23599134,59041.0,59040.0,0.0764998]
[1724870759000,0.19675034,59041.0,59040.0,0.0764998]
[1724870759252,0.19675034,59041.0,59040.0,0.09030889]
[1724870759464,0.53549734,59041.0,59040.0,0.09030889]
[1724870759680,0.87424434,59041.0,59040.0,0.09030889]
[1724870759907,1.29489134,59041.0,59040.0,0.01470889]
[1724870760127,1.64318559,59041.0,59040.0,0.0008998]
[1724870760344,1.79388345,59041.0,59040.0,0.0008998]
[1724870760565,2.10993259,59041.0,59040.0,0.0008998]
[1724870760788,2.18597939,59041.0,59040.0,0.0008998]
[1724870761547,2.21132832,59041.0,59040.0,0.0008998]
[1724870761993,2.10993259,59041.0,59040.0,0.0008998]
[1724870762219,2.10993259,59041.0,59032.0,0.0008998]
[1724870762220,1.339475,59033.0,59032.0,0.0008998]
[1724870762503,1.96356225,59033.0,59032.0,0.0008998]
[1724870762721,2.08656225,59033.0,59032.0,0.0008998]
[1724870762957,2.46192678,59033.0,59032.0,0.0008998]
[1724870763389,0.345839,59025.0,59012.0,0.62759582]
[1724870763619,1.06345225,59025.0,59003.0,0.79707682]
[1724870763866,2.07996925,59025.0,59003.0,0.79707682]
[1724870764087,2.03273136,59025.0,59004.0,0.169479]
[1724870764319,2.05930865,59025.0,59003.0,0.62759582]
[1724870764559,2.05930865,59025.0,59004.0,0.169479]
[1724870765283,2.05730865,59025.0,59004.0,0.169479]
[1724870765519,2.05930865,59025.0,59004.0,0.169479]
[1724870765747,2.19351551,59025.0,59004.0,0.169479]
[1724870766247,2.32016192,59025.0,59004.0,0.169479]
[1724870766732,2.32016192,59025.0,59005.0,0.169477]
[1724870766970,2.3245726,59025.0,59012.0,0.0789]
[1724870767468,2.3265726,59025.0,59012.0,0.0789]
[1724870767909,2.3265726,59025.0,59007.0,0.0789]
[1724870767910,2.19992619,59025.0,59007.0,0.0789]
[1724870768129,2.34916509,59025.0,59007.0,0.0789]
[1724870768363,2.35816509,59025.0,59024.0,0.00112]
[1724870768803,2.24788825,59025.0,59024.0,0.00012]
[1724870769059,2.35816695,59025.0,59024.0,0.00112]
[1724870769539,2.07271933,59025.0,59024.0,0.00112]
[1724870769774,2.07471933,59025.0,59024.0,0.00112]
[1724870770011,2.15065485,59025.0,59024.0,0.00112]
[1724870770239,2.15065485,59025.0,59024.0,0.00012]
[1724870770482,2.14164837,59025.0,59024.0,0.00012]
[1724870770695,2.32420001,59025.0,59024.0,0.00112]
[1724870770916,2.32417876,59025.0,59024.0,0.00112]
[1724870771340,2.23427097,59025.0,59024.0,0.00012]
[1724870771580,2.06371933,59025.0,59024.0,0.00012]
[1724870771813,2.07771933,59025.0,59024.0,0.00112]
[1724870772257,2.06371933,59025.0,59024.0,0.00012]
[1724870772477,1.34192397,59025.0,59024.0,0.00012]
[1724870772715,1.34192397,59025.0,59024.0,0.0010198]
[1724870773195,0.98008497,59025.0,59024.0,0.0010198]
[1724870773418,0.64124597,59025.0,59024.0,0.1378198]
[1724870773645,0.64783529,59025.0,59024.0,0.1388198]
[1724870773876,0.64783529,59025.0,59024.0,0.09177047]
[1724870773877,1.32551329,59025.0,59024.0,0.09177047]
[1724870774094,1.32551329,59025.0,59024.0,0.01497047]
[1724870774095,1.44506462,59025.0,59024.0,0.01497047]
[1724870774301,1.44506462,59025.0,59024.0,0.0010198]
[1724870774527,1.73816206,59025.0,59024.0,0.0020198]
[1724870774961,1.62840685,59025.0,59024.0,0.0020198]
[1724870775646,1.63493927,59025.0,59024.0,0.0020198]
[1724870775859,1.97377827,59025.0,59024.0,0.0020198]
[1724870776078,2.03927827,59025.0,59024.0,0.0020198]
[1724870776991,2.04427827,59025.0,59024.0,0.0020198]
[1724870777224,2.21282991,59025.0,59024.0,0.0020198]
[1724870777438,2.04427827,59025.0,59024.0,0.0020198]
[1724870777650,1.99423719,59025.0,59024.0,0.0020198]
[1724870779183,1.99623719,59025.0,59024.0,0.0020198]
[1724870780269,2.04427827,59025.0,59024.0,0.0020198]
[1724870780690,2.11227227,59025.0,59024.0,0.0020198]
[1724870780883,2.28082391,59025.0,59024.0,0.0020198]
[1724870781356,2.11227227,59025.0,59024.0,0.0020198]
[1724870781623,2.11027227,59025.0,59024.0,0.0020198]
[1724870782081,1.99873119,59025.0,59024.0,0.0020198]
[1724870782796,2.00073119,59025.0,59024.0,0.0020198]
[1724870783256,1.99873119,59025.0,59024.0,0.0020198]
[1724870783484,3.03753336,59025.0,59024.0,0.0020198]
[1724870783722,3.03753336,59025.0,59011.0,0.0004]
[1724870783723,1.76316936,59012.0,59011.0,0.0004]
[1724870783969,1.78616936,59012.0,59011.0,0.0004]
[1724870784192,1.88616936,59012.0,59011.0,0.0004]
[1724870784435,1.97151298,59012.0,59011.0,0.0004]
[1724870784669,1.91274998,59012.0,59011.0,0.0004]
[1724870785581,1.91274998,59012.0,59011.0,0.0012998]
[1724870786038,1.91274998,59012.0,59011.0,0.0082998]
[1724870786039,1.91374998,59012.0,59011.0,0.0082998]
[1724870786282,1.57483598,59012.0,59011.0,0.0082998]
[1724870786528,1.33677962,59012.0,59011.0,0.0893998]
[1724870786753,0.63495162,59012.0,59011.0,0.1488998]
[1724870787023,0.03058062,59012.0,59011.0,0.1488998]
[1724870787702,0.02658062,59012.0,59011.0,0.162858]
[1724870788130,0.19603762,59012.0,59011.0,0.162858]
[1724870788605,0.02658062,59012.0,59011.0,0.162858]
[1724870789025,0.03058062,59012.0,59011.0,0.671236]
[1724870789527,0.02658062,59012.0,59011.0,0.671236]
[1724870789960,0.02658062,59012.0,59011.0,0.676236]
[1724870790410,0.02658062,59012.0,59011.0,0.671236]
[1724870790637,0.02758062,59012.0,59011.0,0.678236]
[1724870791105,0.338879,59019.0,59012.0,0.0793]
[1724870791340,0.169442,59018.0,59014.0,0.0793]
[1724870791557,0.33887,59020.0,59015.0,0.0819]
[1724870791785,0.16944,59018.0,59015.0,0.09585332]
[1724870791995,0.34540124,59023.0,59015.0,0.09585332]
[1724870792221,0.169437,59019.0,59016.0,0.1462]
[1724870792454,0.001,59019.0,59016.0,0.315643]
[1724870792683,0.001,59019.0,59017.0,0.01395089]
[1724870793124,0.101,59019.0,59016.0,0.1462]
[1724870793391,0.1,59019.0,59018.0,0.01394967]
[1724870793610,0.269436,59019.0,59017.0,0.01395089]
[1724870793818,0.269436,59019.0,59018.0,0.01394967]
[1724870794244,0.269436,59019.0,59016.0,0.1462]
[1724870794460,0.269436,59019.0,59018.0,0.01394967]
[1724870794679,0.269436,59019.0,59017.0,0.01395089]
[1724870794897,0.1,59019.0,59017.0,0.01395089]
[1724870795117,0.269436,59019.0,59016.0,0.1462]
[1724870795336,0.270436,59019.0,59018.0,0.01394967]
[1724870795559,0.270436,59019.0,59017.0,0.01395089]
[1724870795808,0.269436,59019.0,59018.0,0.01394967]
[1724870796110,0.609309,59019.0,59018.0,0.01394967]
[1724870796366,0.169441,59018.0,59016.0,0.1462]
[1724870796792,0.1,59019.0,59016.0,0.1462]
[1724870797004,0.269438,59019.0,59016.0,0.1462]
[1724870797520,0.1,59019.0,59016.0,0.315644]
[1724870797747,0.0265758,59019.0,59018.0,0.233739]
[1724870797960,0.0265758,59019.0,59018.0,0.315639]
[1724870798409,0.0265758,59019.0,59018.0,0.654518]
[1724870798410,0.0275758,59019.0,59018.0,0.654518]
[1724870799061,0.0283938,59019.0,59018.0,0.654518]
[1724870800065,0.1978298,59019.0,59018.0,0.1462]
[1724870800777,0.0283938,59019.0,59018.0,0.1462]
[1724870801502,0.0283938,59019.0,59018.0,1.33566475]
[1724870801714,0.0283938,59019.0,59018.0,1.332276]
[1724870802172,0.0283938,59019.0,59018.0,1.34621209]
[1724870802439,0.0273938,59019.0,59018.0,1.34621209]
[1724870802679,0.0273938,59019.0,59018.0,1.35121209]
[1724870803136,0.0273938,59019.0,59018.0,1.34621209]
[1724870803400,0.0273938,59019.0,59018.0,1.68509109]
[1724870803707,0.000818,59025.0,59024.0,1.326557]
[1724870804128,0.000818,59025.0,59024.0,1.34045547]
[1724870805219,0.000818,59025.0,59024.0,1.33945547]
[1724870806091,0.001818,59025.0,59024.0,1.34545547]
[1724870806322,0.001818,59025.0,59024.0,1.68430047]
[1724870806573,0.001818,59025.0,59024.0,1.68630047]
[1724870807058,0.001818,59025.0,59024.0,2.02514547]
[1724870807263,0.000818,59041.0,59040.0,0.989982]
[1724870807504,0.000818,59041.0,59040.0,1.328735]
[1724870807982,0.02738,59041.0,59040.0,1.34260047]
[1724870808190,0.02738,59041.0,59040.0,1.34160047]
[1724870809312,0.02838,59041.0,59040.0,1.34160047]
[1724870811417,0.02838,59041.0,59040.0,1.68035347]
[1724870811418,0.02738,59041.0,59040.0,1.68035347]
[1724870811615,0.000818,59041.0,59040.0,1.68335347]
[1724870811832,0.000818,59041.0,59040.0,1.34350027]
[1724870812262,0.000818,59041.0,59040.0,1.34250027]
[1724870812740,0.000818,59041.0,59040.0,1.34650027]
[1724870813163,0.02737745,59041.0,59040.0,1.34650027]
[1724870815882,0.02737745,59041.0,59040.0,1.97409609]
[1724870816762,0.02737745,59041.0,59040.0,1.63534309]
[1724870816979,0.02737745,59041.0,59040.0,1.29659009]
[1724870817666,0.02737745,59041.0,59040.0,0.78946109]
[1724870817891,0.19675045,59041.0,59040.0,0.64636109]
[1724870818107,0.02737745,59041.0,59040.0,0.64636109]
[1724870818572,0.02737745,59041.0,59040.0,0.64236109]
[1724870819036,0.02737745,59041.0,59040.0,0.64336109]
[1724870819465,0.19675045,59041.0,59040.0,0.64336109]
[1724870819900,0.95194445,59041.0,59040.0,0.01576527]
[1724870820127,0.50812,59041.0,59040.0,0.01576527]
[1724870820570,0.924567,59041.0,59040.0,0.01576527]
[1724870820783,1.011867,59041.0,59040.0,0.01476527]
[1724870821020,1.011867,59041.0,59040.0,0.0008998]
[1724870821425,0.990867,59041.0,59040.0,0.0008998]
[1724870821855,0.988867,59041.0,59040.0,0.0008998]
[1724870822309,0.846867,59041.0,59040.0,0.0008998]
[1724870822567,0.852867,59041.0,59040.0,0.0018998]
[1724870824139,0.847685,59041.0,59040.0,0.0008998]
[1724870824416,0.847685,59041.0,59040.0,0.0018998]
[1724870824417,0.853685,59041.0,59040.0,0.0018998]
[1724870824800,0.853685,59041.0,59040.0,0.0008998]
[1724870824801,0.847685,59041.0,59040.0,0.0008998]
[1724870825072,0.508938,59041.0,59040.0,0.0008998]
[1724870825336,0.170191,59041.0,59040.0,0.0008998]
[1724870825525,0.170191,59041.0,59040.0,0.0795998]
[1724870825526,0.005818,59041.0,59040.0,0.0795998]
[1724870825741,0.005818,59041.0,59040.0,0.09340067]
[1724870826193,0.005818,59041.0,59040.0,0.26277667]
[1724870826437,0.005818,59041.0,59040.0,0.01470067]
[1724870827103,0.000818,59041.0,59040.0,0.01470067]
[1724870827555,0.003818,59041.0,59040.0,0.01470067]
[1724870827808,0.0303829,59041.0,59040.0,0.01470067]
[1724870828033,0.0273829,59041.0,59040.0,0.52282967]
[1724870828260,0.0283829,59041.0,59040.0,0.60402967]
[1724870828469,0.0283829,59041.0,59040.0,0.94278267]
[1724870828699,0.0273829,59041.0,59040.0,0.60402967]
[1724870829149,0.0273829,59041.0,59040.0,0.60502967]
[1724870829366,0.0273829,59041.0,59040.0,0.94378267]
[1724870829615,0.0273829,59041.0,59040.0,1.34813567]
[1724870830272,0.0273829,59041.0,59040.0,1.34713567]
[1724870830703,0.0273829,59041.0,59040.0,1.97973149]
[1724870833397,0.0273829,59041.0,59040.0,2.31348449]
[1724870833647,0.0273829,59041.0,59040.0,2.32348449]
[1724870833846,0.000818,59051.0,59050.0,0.84674]
[1724870834095,0.000818,59051.0,59050.0,0.98744]
[1724870834367,0.000818,59051.0,59050.0,0.66252492]
[1724870834623,0.000818,59051.0,59050.0,0.60192492]
[1724870834840,0.000818,59051.0,59050.0,0.94062092]
[1724870835092,0.000818,59051.0,59050.0,0.52182492]
[1724870835848,0.170163,59051.0,59050.0,0.01378092]
[1724870836087,0.000818,59051.0,59050.0,0.01378092]
[1724870836341,0.000818,59051.0,59047.0,0.338712]
[1724870836568,0.000818,59051.0,59050.0,0.18312892]
[1724870836815,0.000818,59051.0,59050.0,0.169348]
[1724870837066,0.000818,59051.0,59050.0,0.01378092]
[1724870837544,0.000818,59051.0,59049.0,0.16935]
[1724870837789,0.000818,59051.0,59050.0,0.01378092]
[1724870838524,0.000818,59051.0,59049.0,0.16935]
[1724870838776,0.000818,59051.0,59050.0,0.01378092]
[1724870839016,0.170163,59051.0,59050.0,0.01378092]
[1724870839243,0.575153,59051.0,59050.0,0.01378092]
[1724870839688,0.169354,59048.0,59045.0,0.62759582]
[1724870840164,0.169354,59048.0,59046.0,0.01378578]
[1724870840414,0.405808,59051.0,59046.0,0.01378578]
[1724870840415,0.169356,59047.0,59046.0,0.01378578]
[1724870840626,0.508069,59047.0,59046.0,0.01378578]
[1724870841107,0.846782,59047.0,59046.0,0.01378578]
[1724870841550,0.846782,59047.0,59038.0,0.5547]
[1724870841551,0.169371,59042.0,59038.0,0.724082]
[1724870841782,0.169371,59042.0,59041.0,0.01377567]
[1724870842289,0.067118,59051.0,59041.0,0.01377567]
[1724870842531,0.169354,59048.0,59044.0,0.169363]
[1724870842988,0.169354,59048.0,59045.0,0.18313182]
[1724870843498,0.19591225,59049.0,59045.0,0.18313182]
[1724870844479,0.19591225,59049.0,59045.0,0.01377082]
[1724870844947,0.19591225,59049.0,59042.0,0.24827]
[1724870845175,0.19691225,59049.0,59042.0,0.24827]
[1724870845397,0.19691225,59049.0,59043.0,0.01377326]
[1724870845635,0.02656225,59049.0,59043.0,0.18314026]
[1724870846602,0.02656225,59049.0,59045.0,0.001]
[1724870847115,0.02656225,59049.0,59046.0,0.01376961]
[1724870847789,0.02656225,59049.0,59047.0,0.0758]
[1724870848016,0.02656225,59049.0,59048.0,0.0643]
[1724870848247,0.02656225,59049.0,59048.0,1.28952529]
[1724870849862,0.02656225,59049.0,59048.0,1.29052529]
[1724870851033,0.02656225,59049.0,59048.0,1.28952529]
[1724870851464,0.02656225,59049.0,59048.0,1.29452529]
[1724870851920,0.02656225,59049.0,59048.0,1.28952529]
[1724870852139,0.02656225,59049.0,59048.0,1.29652529]
[1724870852582,0.02656225,59049.0,59048.0,0.95781829]
[1724870853023,0.02656225,59049.0,59048.0,1.29652529]
[1724870853241,0.02656225,59049.0,59048.0,0.78846529]
[1724870854352,0.02656225,59049.0,59048.0,0.72416529]
[1724870854579,0.19591225,59049.0,59048.0,0.64836529]
[1724870854826,1.33985541,59049.0,59048.0,0.02076947]
[1724870855055,1.31231525,59049.0,59048.0,0.02076947]
[1724870855318,1.93520931,59049.0,59048.0,0.007]
[1724870855566,0.853852,59042.0,59041.0,0.0008998]
[1724870855802,1.91219036,59042.0,59041.0,0.0008998]
[1724870856047,2.18755412,59042.0,59041.0,0.0008998]
[1724870856280,2.21412239,59042.0,59041.0,0.0008998]
[1724870856522,2.06175863,59042.0,59041.0,0.0008998]
[1724870856758,2.05975863,59042.0,59041.0,0.0008998]
[1724870857019,1.71601763,59042.0,59041.0,0.0008998]
[1724870857745,1.71901763,59042.0,59041.0,0.0018998]
[1724870857998,1.11922027,59042.0,59041.0,0.0018998]
[1724870858253,0.4228262,59042.0,59041.0,0.0008998]
[1724870858488,0.27606239,59042.0,59041.0,0.0018998]
[1724870858728,0.19993827,59042.0,59041.0,0.0823998]
[1724870858944,0.19593827,59042.0,59041.0,0.0813998]
[1724870859635,0.02656827,59042.0,59041.0,0.0813998]
[1724870860128,0.02656827,59042.0,59041.0,0.0952269]
[1724870860368,0.02956827,59042.0,59041.0,0.0962269]
[1724870860831,0.02656827,59042.0,59041.0,0.0952269]
[1724870861062,0.02956827,59042.0,59041.0,0.0952269]
[1724870861304,0.53767927,59042.0,59041.0,0.0147269]
[1724870861528,0.53467927,59042.0,59041.0,0.0147269]
[1724870861736,0.53467927,59042.0,59041.0,0.0008998]
[1724870861964,0.53467927,59042.0,59041.0,0.0038998]
[1724870862431,0.19593827,59042.0,59041.0,0.0038998]
[1724870863097,0.19593827,59042.0,59041.0,0.0177269]
[1724870863310,0.19593827,59042.0,59041.0,0.0008998]
[1724870863526,0.19593827,59042.0,59041.0,0.0147269]
[1724870864055,0.02756827,59042.0,59041.0,0.0008998]
[1724870864066,0.02756827,59042.0,59041.0,0.0147269]
[1724870864316,0.02656827,59042.0,59041.0,0.2645999]
[1724870864557,0.02756827,59042.0,59041.0,0.0952269]
[1724870865036,0.02656827,59042.0,59041.0,0.3282999]
[1724870865255,0.02656827,59042.0,59041.0,0.3342999]
[1724870866166,0.02656827,59042.0,59041.0,0.6764342]
[1724870866460,0.02656827,59042.0,59041.0,1.63938972]
[1724870866656,0.02656827,59042.0,59041.0,1.97813672]
[1724870866874,0.02656827,59042.0,59041.0,1.97213672]
[1724870867148,0.02656827,59042.0,59041.0,1.97913672]
[1724870867359,0.000818,59049.0,59041.0,1.97913672]
[1724870867360,0.000818,59049.0,59048.0,1.185474]
[1724870867576,0.000818,59049.0,59048.0,1.266874]
[1724870867853,0.000818,59049.0,59048.0,1.3450421]
[1724870868532,0.000818,59049.0,59048.0,1.3590421]
[1724870869874,0.000818,59049.0,59048.0,1.3450421]
[1724870870498,0.000818,59049.0,59048.0,1.3590421]
[1724870870580,0.000818,59049.0,59048.0,1.3450421]
[1724870871013,0.000818,59049.0,59048.0,1.3590421]
[1724870872425,0.000818,59049.0,59048.0,1.98663792]
[1724870872697,0.000818,59049.0,59048.0,1.30922392]
[1724870873392,0.000818,59049.0,59048.0,1.63393092]
[1724870873620,0.000818,59049.0,59048.0,1.29522392]
[1724870873842,0.000818,59049.0,59048.0,0.80116392]
[1724870874059,0.000818,59049.0,59048.0,0.73676392]
[1724870874547,0.000818,59049.0,59048.0,0.72276392]
[1724870875046,0.000818,59049.0,59048.0,0.73476392]
[1724870875301,0.170168,59049.0,59048.0,0.65336392]
[1724870876023,0.170168,59049.0,59048.0,0.64136392]
[1724870876024,0.000818,59049.0,59048.0,0.64136392]
[1724870876261,0.170168,59049.0,59048.0,0.64136392]
[1724870876502,0.170168,59049.0,59048.0,0.65136392]
[1724870877207,0.22088803,59049.0,59048.0,0.65136392]
[1724870877680,0.24744783,59049.0,59048.0,0.63759582]
[1724870878355,0.58614883,59049.0,59048.0,0.65134174]
[1724870878356,0.58614883,59049.0,59048.0,0.02374592]
[1724870879229,0.92485319,59049.0,59048.0,0.02374592]
[1724870879481,0.8741298,59049.0,59048.0,0.02374592]
[1724870880393,1.39557758,59049.0,59048.0,0.02374592]
[1724870880612,1.3547308,59049.0,59048.0,0.02374592]
[1724870880830,1.48153928,59049.0,59048.0,0.02374592]
[1724870881268,1.3547308,59049.0,59048.0,0.01374592]
[1724870881723,1.3547308,59049.0,59042.0,0.0008998]
[1724870881724,0.508104,59043.0,59042.0,0.0008998]
[1724870882016,1.93386836,59043.0,59042.0,0.0008998]
[1724870882220,2.06208667,59043.0,59042.0,0.0008998]
[1724870882441,2.2316818,59043.0,59042.0,0.0008998]
[1724870882687,2.06043738,59043.0,59042.0,0.0008998]
[1724870883675,2.16109091,59043.0,59042.0,0.0008998]
[1724870883896,2.16409091,59043.0,59042.0,0.0008998]
[1724870884121,2.16209091,59043.0,59042.0,0.0008998]
[1724870884334,2.15909091,59043.0,59042.0,0.0008998]
[1724870884574,2.16309091,59043.0,59042.0,0.0018998]
[1724870884803,2.16969567,59043.0,59042.0,0.0018998]
[1724870885228,2.16969567,59043.0,59042.0,0.0008998]
[1724870885229,2.16769567,59043.0,59042.0,0.0008998]
[1724870885445,2.17169567,59043.0,59042.0,0.0018998]
[1724870887082,2.24822302,59043.0,59042.0,0.0018998]
[1724870887313,2.24839073,59043.0,59042.0,0.0018998]
[1724870887542,2.16986338,59043.0,59042.0,0.0018998]
[1724870888492,2.17186338,59043.0,59042.0,0.0018998]
[1724870888734,2.16786338,59043.0,59042.0,0.0008998]
[1724870889629,2.31985059,59043.0,59042.0,0.0008998]
[1724870890241,0.005,59028.0,59020.0,0.62759582]
[1724870890472,1.232797,59017.0,59016.0,0.50630766]
[1724870890690,1.48955126,59017.0,59016.0,0.0008998]
[1724870890912,1.5974886,59017.0,59016.0,0.0008998]
[1724870891137,1.64276407,59017.0,59016.0,0.0008998]
[1724870891353,1.87801383,59017.0,59016.0,0.0008998]
[1724870891820,2.38230035,59017.0,59016.0,0.0008998]
[1724870892058,3.29384055,59017.0,59016.0,0.0008998]
[1724870892307,3.3610934,59017.0,59016.0,0.0008998]
[1724870892542,3.30023695,59017.0,59016.0,0.0008998]
[1724870892768,3.24869675,59017.0,59016.0,0.0008998]
[1724870892997,3.41724839,59017.0,59016.0,0.0008998]
[1724870893940,3.41524839,59017.0,59016.0,0.0008998]